Cogmind - Beta 16.1 @@@ ROGUE MODE // 2026.03.19 @ 23:55:31 Player: Ceorik Result: Destroyed self via exploding Z-Power Performance ------------- Evolutions (4) 2000 Regions Visited (13) 2600 Robots Destroyed (53) 265 Value Destroyed (2068) 2068 Prototype IDs (15) 300 Alien Tech Used (0) 0 Bonus (2344) 2344 TOTAL SCORE: 9577 Bonus ------- Follower Combat Kills 74 Met Imprinter 300 Destroyed Z-Imprinter 1000 Triggered Deep Caves Wall 500 Exposed GOLEM Chamber 500 Friendly Fire -30 Cogmind --------- Core Integrity 0/850 Matter 300/300 Energy 61/100 System Corruption 3% Temperature Cool (0) Movement Core (50) Location -6/Deep Caves Parts ------- > --- POWER (2) -------- (None) > --- PROPULSION (4) --- (None) > --- UTILITY (6) ------ Advanced Hacking Suite > --- WEAPON (3) ------- (None) > --- INVENTORY (5) ---- Molecular Deconstructor Phasing Sabre Peak State ------------ > --- POWER ------------ Enhanced Nuclear Core Zionite Light DM Reactor > --- PROPULSION ------- Improved Titanium Leg Improved Titanium Leg Armored Huge Wheel > --- UTILITY ---------- Experimental Heat Sink Large Storage Unit Experimental Optical Array Improved Armor Integrity Analyzer Advanced Phase Shifter Hardened Medium Armor Plating > --- WEAPON ----------- Zionite Laser-S Zionite Laser-M Zionite Laser-M > --- INVENTORY -------- Light Nuclear Core Improved Titanium Leg Experimental Heat Sink Large Storage Unit Medium Matter Pod Advanced Hacking Suite Hacking Drone Bay Heavy Particle Cannon Advanced EMP Blaster Advanced EMP Blaster Mini Grenade Launcher Plasma Cutter Molecular Deconstructor Phasing Sabre [Rating: 93] Favorites ----------- Power Nuclear Core Engine Ion Engine Power Core Nuclear Core Reactor Zionite Light DM Reactor Propulsion Improved Titanium Leg Treads Light Treads Leg Improved Titanium Leg Wheel Armored Huge Wheel Hover Unit Hover Unit Utility Improved Heat Sink Device Improved Heat Sink Storage Large Storage Unit Processor Improved Armor Integrity Analyzer Hackware Advanced Hacking Suite Protection Improved Medium Armor Plating Weapon Heavy Particle Cannon Energy Gun Zionite Laser-M Energy Cannon Heavy Particle Cannon Ballistic Gun Heavy Assault Rifle Launcher Grenade Launcher Special Weapon Molecular Deconstructor Impact Weapon Great Maul Slashing Weapon Great Axe Build | -11 -10 -10 -9 -9 -9 -8 -8 -7 -6 -6 -6 -6 -6 ------- Run | Yrd Mat Min Mat Min Exi Min Mat Fac Fac Low Low Zio Dee Slots Evolved 8 | . . . 2 . . . 2 2 2 . . . . Power 1 | . . . . . . . . . 1 . . . . Propulsion 2 | . . . 1 . . . . 1 . . . . . Utility 4 | . . . 1 . . . 2 . 1 . . . . Weapon 1 | . . . . . . . . 1 . . . . . Parts Attached 92 | 6 5 5 7 2 . 1 10 20 6 2 3 5 20 Power 9 | 1 1 . 1 1 . . 1 1 1 . . . 2 Engine 4 | 1 1 . 1 . . . 1 . . . . . . Core 4 | . . . . 1 . . . 1 1 . . . 1 Reactor 1 | . . . . . . . . . . . . . 1 Propulsion 26 | 2 1 2 1 . . 1 2 10 . . . . 7 Treads 6 | 2 . 1 1 . . . 1 . . . . . 1 Leg 8 | . . . . . . . . 6 . . . . 2 Wheel 6 | . 1 1 . . . 1 1 2 . . . . . Hover 6 | . . . . . . . . 2 . . . . 4 Flight . | . . . . . . . . . . . . . . Utility 34 | 1 2 1 4 1 . . 4 4 5 1 2 2 7 Device 17 | . . . 2 1 . . 2 2 3 1 1 . 5 Storage 2 | 1 1 . . . . . . . . . . . . Processor 4 | . . . . . . . . 1 1 . . 2 . Hackware 1 | . . . . . . . . . . . . . 1 Protection 10 | . 1 1 2 . . . 2 1 1 . 1 . 1 Artifact . | . . . . . . . . . . . . . . Weapon 23 | 2 1 2 1 . . . 3 5 . 1 1 3 4 Energy Gun 3 | . . . . . . . . . . . . . 3 Energy Cannon 5 | . . . . . . . 2 2 . 1 . . . Ballistic Gun 6 | 2 1 2 1 . . . . . . . . . . Ballistic Cannon . | . . . . . . . . . . . . . . Launcher 4 | . . . . . . . 1 1 . . 1 . 1 Special Weapon 2 | . . . . . . . . . . . . 2 . Impact Weapon 1 | . . . . . . . . 1 . . . . . Slashing Weapon 2 | . . . . . . . . 1 . . . 1 . Piercing Weapon . | . . . . . . . . . . . . . . Special Melee Weapon . | . . . . . . . . . . . . . . Unidentified Prototypes 12 | . . . . . . . . 1 1 . . 2 8 Parts Lost 36 | . 4 . . . . . 1 2 . . 2 . 27 Power 6 | . 1 . . . . . 1 . . . . . 4 Propulsion 10 | . 1 . . . . . . . . . . . 9 Utility 10 | . 1 . . . . . . 1 . . 2 . 6 Weapon 10 | . 1 . . . . . . 1 . . . . 8 Highest Loss Streak 15 | . 2 . . . . . 1 2 . . 2 . 15 To Critical Strikes . | . . . . . . . . . . . . . . Average Backups 12 | 2 7 13 14 15 15 15 14 14 14 14 13 13 8 Power 1 | . 1 3 3 3 3 3 2 2 1 1 1 1 . Propulsion 1 | 1 1 1 1 1 1 1 1 1 2 2 2 2 . Utility 4 | . 3 4 5 5 6 6 5 6 6 6 4 4 3 Weapon 4 | . 1 4 5 5 5 4 4 3 4 4 5 5 4 Tool/Special . | . . . . . . . . . . . . . . Unused Backups 15 | . . 1 4 . . . 3 2 2 . . . 3 Power 3 | . . . 1 . . . 2 . . . . . . Propulsion . | . . . . . . . . . . . . . . Utility 6 | . . . 2 . . . . . 2 . . . 2 Weapon 5 | . . 1 1 . . . . 2 . . . . 1 Tool/Special 1 | . . . . . . . 1 . . . . . . Average Slot Usage (%) 89 | . 94 93 99 100 100 100 92 90 92 93 92 92 65 Engine 3 | . 13 14 11 3 . . 3 2 1 . . . . Core 7 | . . . . 7 11 11 5 4 11 13 13 13 4 Treads 6 | . 25 14 22 22 22 22 13 3 . . . . . Leg 8 | . . . . . . . . 11 13 13 13 13 8 Wheel 6 | . 1 14 11 11 11 11 13 8 6 6 6 6 2 Hover 1 | . . . . . . . . . . . . . 7 Device 12 | . . . 10 11 11 11 15 17 19 20 17 13 9 Storage 7 | . 14 14 11 11 11 11 9 7 6 6 6 6 3 Processor 5 | . . . . . . . . 2 6 6 6 10 7 Protection 8 | . 9 8 11 11 11 11 13 6 6 6 7 8 3 Energy Cannon 8 | . . . . . . . 7 14 13 13 12 12 4 Ballistic Gun 6 | . 27 28 22 22 22 22 4 . . . . . . Launcher 1 | . . . . . . . 5 3 . . . . 2 Slashing Weapon 2 | . . . . . . . . 2 6 6 6 5 1 Peak Build Rating 93 | 6 8 10 16 18 18 18 25 47 61 63 63 68 93 Average Rating 43 | 5 7 8 14 17 18 18 22 39 56 62 61 64 55 On Entrance 29 | . 6 7 10 16 18 18 18 25 47 61 63 58 64 Avg Prop Armor Cover (%) 9 | . 10 10 14 15 15 12 8 8 7 8 7 7 10 Naked Turns 59 | . . . . . . . . . . . . . 59 Heaviest Build 70 | 12 30 34 41 37 37 37 55 59 64 63 70 70 63 Greatest Support 68 | 40 40 20 20 16 16 20 20 68 28 28 28 28 60 Greatest Overweight (x) 5 | . 2 2 2 2 2 3 5 5 2 2 2 2 2 Average Overweight (x) 1 | . . 1 1 2 2 2 2 1 2 2 2 2 . Largest Inventory Capacity 15 | 8 15 15 15 15 15 15 15 15 15 15 15 15 15 Average Capacity 14 | 7 14 15 15 15 15 15 15 15 15 15 15 15 10 Most Carried 15 | 4 12 15 15 15 15 15 15 15 15 15 15 15 15 Average Carried 13 | 2 7 13 14 14 15 14 14 14 14 14 14 14 9 Final Capacity 15 | 8 15 15 15 15 15 15 15 15 15 15 15 15 5 Final Carried 15 | 4 12 15 15 15 15 15 15 15 15 15 13 15 3 Class Distribution -------------------- 59% | Mutant 24% | Scavenger-Mutant 5% | Scavenger-Gunner 5% | Assassin 4% | Gunner Dominant Class ---------------- Mutant | -10/Materials Scavenger-Mutant | -10/Mines Scavenger-Mutant | -9/Materials Scavenger-Mutant | -9/Mines Scavenger-Mutant | -9/Exiles Scavenger-Mutant | -8/Mines Scavenger-Mutant | -8/Materials Mutant | -7/Factory Assassin | -6/Factory Mutant | -6/Lower Caves Mutant | -6/Lower Caves Mutant | -6/Zion Mutant | -6/Deep Caves Resources | -11 -10 -10 -9 -9 -9 -8 -8 -7 -6 -6 -6 -6 -6 ----------- Run | Yrd Mat Min Mat Min Exi Min Mat Fac Fac Low Low Zio Dee Matter Collected 1826 | 199 241 159 228 50 . 36 117 163 29 138 90 75 301 Remotely . | . . . . . . . . . . . . . . Salvage Created 2767 | . 241 . 245 105 . 18 475 460 25 60 105 . 1033 Parts 121 | . 11 . 17 5 . 4 33 29 2 3 2 . 15 Haulers Intercepted 2 | . . . . . . . 1 1 . . . . . Recyclers Shooed 1 | . . 1 . . . . . . . . . . . Parts Field Recycled . | . . . . . . . . . . . . . . Retrieved Matter . | . . . . . . . . . . . . . . Parts Self-Destructed 6 | . . . . . . . . . . 3 2 1 . Prevented . | . . . . . . . . . . . . . . Parts Restored . | . . . . . . . . . . . . . . Kills | -11 -10 -10 -9 -9 -9 -8 -8 -7 -6 -6 -6 -6 -6 ------- Run | Yrd Mat Min Mat Min Exi Min Mat Fac Fac Low Low Zio Dee Combat Hostiles Destroyed 75 | . 6 . 7 2 . . 13 9 . 1 4 . 33 Guns 21 | . 6 . 7 2 . . 1 . . . . . 5 Cannons 22 | . . . . . . . 10 6 . 1 2 . 3 AOE 31 | . . . . . . . 2 3 . . 2 . 24 Classes Destroyed 12 | . 1 . 2 . . 1 2 2 . 1 . . 3 Worker 3 | . . . . . . 1 . 1 1 . . . . Hauler 2 | . . . . . . . 1 1 . . . . . Recycler 1 | . . . . . . . . 1 . . . . . Swarmer 11 | . . . 2 . . . 6 3 . . . . . Grunt 22 | . 6 . 4 2 . . 4 2 . . 4 . . Brawler 1 | . . . . . . . 1 . . . . . . Sentry 4 | . . . 1 . . . 2 1 . . . . . Hunter 1 | . . . . . . . . . . 1 . . . Programmer 3 | . . . . . . . . 3 . . . . . Z-Light 3 | . . . . . . . . . . . . . 3 Assembled 28 | . . . . . . . . . . . . . 28 Golem 1 | . . . . . . . . . . . . . 1 Best Kill Streak 24 | . 2 . 3 2 . 1 5 4 1 1 4 . 24 Combat Bots Only 24 | . 2 . 3 2 . . 5 4 . 1 4 . 24 Max Kills in Single Turn 6 | . 1 . 1 1 . 1 2 2 1 1 1 . 6 Gunslinging 1 | . . . . . . . . . . . . . 1 Exploded 6 | . . . . . . . 2 2 . . 1 . 6 Melee . | . . . . . . . . . . . . . . Uniques/NPCs Destroyed 1 | . . . . . . . . . . . . . 1 Z-Imprinter (-6/Deep Caves) Combat | -11 -10 -10 -9 -9 -9 -8 -8 -7 -6 -6 -6 -6 -6 -------- Run | Yrd Mat Min Mat Min Exi Min Mat Fac Fac Low Low Zio Dee Hostile Shots Fired 506 | . 66 5 47 11 . . 39 76 3 21 30 . 208 Missed 166 | . 19 1 14 1 . . 12 27 2 7 9 . 74 Hits 340 | . 47 4 33 10 . . 27 49 1 14 21 . 134 Melee 7 | . . . . . . . . . . . . . 7 Projectile 333 | . 47 4 33 10 . . 27 49 1 14 21 . 127 Critical Strikes 12 | . . 1 1 . . . 1 4 . . 2 . 3 Part Disruptions 1 | . . . . . . . . . . . . . 1 Damage Taken 6175 | . 623 46 395 122 . . 307 706 15 206 452 13 3290 Core 1082 | . 80 14 15 . . . 54 45 . 32 15 . 827 Absorbed by Shields . | . . . . . . . . . . . . . . Core Remaining (%) 88 | 100 . 62 . . . 96 90 93 . . . . . Volleys Fired 213 | . 34 6 23 5 . 1 34 35 . 6 15 3 51 Largest 3 | . 2 2 2 2 . 2 2 2 . 2 2 1 3 Hottest 206 | . 40 40 46 46 . 46 75 150 . 140 140 . 206 Shots Fired 321 | . 67 12 46 10 . 2 36 41 . 9 21 3 74 Gun 159 | . 67 12 46 10 . 2 4 . . . . . 18 Cannon 128 | . . . . . . . 31 38 . 9 16 . 34 Launcher 31 | . . . . . . . 1 3 . . 5 . 22 Special 3 | . . . . . . . . . . . . 3 . Kinetic 141 | . 67 12 46 10 . 2 4 . . . . . . Thermal 146 | . . . . . . . 31 38 . 9 16 . 52 Explosive 9 | . . . . . . . 1 3 . . 5 . . Electromagnetic 22 | . . . . . . . . . . . . . 22 Robot Hit Streak 12 | . 12 2 6 8 . 6 11 7 . 4 5 . 5 Robot Miss Streak 6 | . 3 6 2 2 . . 4 5 . 2 2 . 4 Penetration Max . | . . . . . . . . . . . . . . Secondary Targets 4 | . 1 . 1 1 . . . . . . . . 1 Max Gunslinging Chain 1 | . 1 . 1 1 . . . . . . . . 1 Shots Hit Robots 177 | . 47 4 27 7 . 1 23 23 1 5 11 1 27 Core Hits 152 | . 16 1 14 4 . 1 15 17 1 2 9 . 72 Critical Kills 1 | . 1 . . . . . . . . . . . . Critical Parts Destroyed . | . . . . . . . . . . . . . . Critical Strikes 1 | . 1 . . . . . . . . . . . . Destroy 1 | . 1 . . . . . . . . . . . . Melee Attacks 4 | . . . . . . . . 1 1 1 . 1 . Impact 1 | . . . . . . . . 1 . . . . . Slashing 3 | . . . . . . . . . 1 1 . 1 . Piercing . | . . . . . . . . . . . . . . Sneak Attacks 1 | . . . . . . . . . 1 . . . . Combat Hostiles . | . . . . . . . . . . . . . . Follow-up Attacks . | . . . . . . . . . . . . . . Damage Inflicted 7359 | . 382 33 398 101 . 14 714 941 89 128 720 35 3804 Guns 1290 | . 382 33 398 101 . 14 46 . . . . . 316 Cannons 2149 | . . . . . . . 596 718 . 128 232 . 475 Explosions 3796 | . . . . . . . 72 223 . . 488 . 3013 Melee 124 | . . . . . . . . . 89 . . 35 . Ramming . | . . . . . . . . . . . . . . Kinetic 974 | . 382 33 398 101 . 14 46 . . . . . . Thermal 3539 | . . . . . . . 596 718 . 128 232 . 1865 Explosive 783 | . . . . . . . 72 223 . . 488 . . Electromagnetic 1939 | . . . . . . . . . . . . . 1939 Impact . | . . . . . . . . . . . . . . Slashing 124 | . . . . . . . . . 89 . . 35 . Piercing . | . . . . . . . . . . . . . . Highest Corruption 3 | . . . . . . . . 1 . . . . 3 Average Corruption 1 | . . . . . . . . 1 . . . . 3 Corruption Purged . | . . . . . . . . . . . . . . Corruption Blocked . | . . . . . . . . . . . . . . Effects 9 | . . . . . . . . 3 . . . . 6 Message Errors 1 | . . . . . . . . 1 . . . . . Matter Fused 4 | . . . . . . . . . . . . . 4 Heat Flow Errors 1 | . . . . . . . . 1 . . . . . Energy Discharges 1 | . . . . . . . . 1 . . . . . Data Loss (minor) 2 | . . . . . . . . . . . . . 2 Overload Shots . | . . . . . . . . . . . . . . Overflow Damage 399 | . . . . . . . 22 83 . . 26 . 268 Projectiles 96 | . . . . . . . 22 48 . . 26 . . Explosions 303 | . . . . . . . . 35 . . . . 268 Melee . | . . . . . . . . . . . . . . Knockbacks . | . . . . . . . . . . . . . . Impact . | . . . . . . . . . . . . . . Kinetic . | . . . . . . . . . . . . . . Secondary . | . . . . . . . . . . . . . . Self-Inflicted Damage 567 | . . . . . . . . 113 . . 45 . 409 Shots 7 | . . . . . . . . 3 . . 1 . 3 Rammed . | . . . . . . . . . . . . . . Targets Rammed . | . . . . . . . . . . . . . . Kicked . | . . . . . . . . . . . . . . Crushed . | . . . . . . . . . . . . . . Highest Temperature 353 | . 84 6 2 . . . 123 198 . 108 222 . 353 Average Temperature 69 | . 26 4 2 . . . 44 74 . 40 125 . 131 Received Heat Transfer 1463 | . 360 9 156 72 . . 99 75 . . 232 . 460 Effects 1 | . . . . . . . . . . . 1 . . Energy Bleed 1 | . . . . . . . . . . . 1 . . Siege Activations . | . . . . . . . . . . . . . . Martial Activations . | . . . . . . . . . . . . . . Shielding Activations . | . . . . . . . . . . . . . . Robots Disrupted . | . . . . . . . . . . . . . . Combat Hostiles . | . . . . . . . . . . . . . . Robots Corrupted 1 | . . . . . . . . . . . . . 1 Combat Hostiles 1 | . . . . . . . . . . . . . 1 Parts Fried . | . . . . . . . . . . . . . . Impact Corruptions . | . . . . . . . . . . . . . . Robots Melted . | . . . . . . . . . . . . . . Combat Hostiles . | . . . . . . . . . . . . . . Parts Melted 9 | . . . . . . . 1 1 . 1 1 . 5 Heat Transferred 3124 | . . . . . . . 740 851 . 185 333 . 1015 Parts Sabotaged . | . . . . . . . . . . . . . . Parts Stolen . | . . . . . . . . . . . . . . Parts Stripped . | . . . . . . . . . . . . . . Power Chain Reactions 6 | . . . . . . . . . . . . . 6 Alert | -11 -10 -10 -9 -9 -9 -8 -8 -7 -6 -6 -6 -6 -6 ------- Run | Yrd Mat Min Mat Min Exi Min Mat Fac Fac Low Low Zio Dee Maximum Alert Level 1 | . . . . . . . . 1 . . . . . Low Security (%) 97 | 100 100 100 100 100 . 100 100 88 100 . . . . Level 1 2 | . . . . . . . . 11 . . . . . Level 2 . | . . . . . . . . . . . . . . Level 3 . | . . . . . . . . . . . . . . Level 4 . | . . . . . . . . . . . . . . Level 5 . | . . . . . . . . . . . . . . High Security . | . . . . . . . . . . . . . . Max Security . | . . . . . . . . . . . . . . Peak Influence 255 | . 85 15 96 50 . 5 195 255 5 . . . . Initial 14 | . . . . . . . . 14 . . . . . Average 44 | . 28 . 40 31 . . 47 104 . . . . . Influence Increases 1449 | . 265 15 201 50 . 5 396 392 5 30 90 . . Destroy 0b10 Robot/C 840 | . 120 . 140 40 . . 260 180 . 20 80 . . Destroy 0b10 Robot/NC 30 | . . . . . . 5 5 15 5 . . . . Destroy Leader 194 | . 20 . 30 10 . . 62 52 . 10 10 . . Successful Hack 53 | . 5 . 14 . . . 29 5 . . . . . Disable Machine 75 | . . . . . . . . 75 . . . . . Destroy Structure 62 | . . . 2 . . . 10 50 . . . . . Lose Combat Pursuer 195 | . 120 15 15 . . . 30 15 . . . . . Influence Decreases 1449 | . 265 15 201 20 30 5 364 424 5 30 50 40 . Entered New Map 88 | . . . . . 30 . . 18 . . . 40 . Time Decay 1093 | . 225 15 201 20 . 5 204 338 5 30 50 . . Lost Part 70 | . 40 . . . . . 10 20 . . . . . Purge Threat 198 | . . . . . . . 150 48 . . . . . Squads Dispatched 5 | . 1 . . . . . 1 2 1 . . . . Investigation 2 | . . . . . . . 1 . 1 . . . . Extermination 2 | . . . . . . . . 2 . . . . . Reinforcement 1 | . 1 . . . . . . . . . . . . Assault . | . . . . . . . . . . . . . . Garrison . | . . . . . . . . . . . . . . Intercept . | . . . . . . . . . . . . . . Searches Triggered . | . . . . . . . . . . . . . . Construction Impeded . | . . . . . . . . . . . . . . Haulers Reinforced . | . . . . . . . . . . . . . . Active Scanning Responses . | . . . . . . . . . . . . . . Cargo Convoy Interrupts . | . . . . . . . . . . . . . . Stealth | -11 -10 -10 -9 -9 -9 -8 -8 -7 -6 -6 -6 -6 -6 --------- Run | Yrd Mat Min Mat Min Exi Min Mat Fac Fac Low Low Zio Dee Distress Signals 1 | . . . . . . . 1 . . . . . . Communications Jammed . | . . . . . . . . . . . . . . Distress Signals . | . . . . . . . . . . . . . . Times Spotted 143 | . 19 4 10 2 . . 23 13 2 1 4 1 64 Peak Tracking Total 20 | . 5 3 5 2 . . 7 4 2 1 4 1 20 Tactical Retreats 15 | . 5 1 1 . . . 2 1 . . . . 5 Traps | -11 -10 -10 -9 -9 -9 -8 -8 -7 -6 -6 -6 -6 -6 ------- Run | Yrd Mat Min Mat Min Exi Min Mat Fac Fac Low Low Zio Dee Traps Triggered 2 | . . . . . . . . 1 1 . . . . Indirectly . | . . . . . . . . . . . . . . Trap Hack Attempts . | . . . . . . . . . . . . . . Triggered . | . . . . . . . . . . . . . . Disarmed . | . . . . . . . . . . . . . . Reprogrammed . | . . . . . . . . . . . . . . Reused . | . . . . . . . . . . . . . . Traps Extracted . | . . . . . . . . . . . . . . Installed . | . . . . . . . . . . . . . . Triggered . | . . . . . . . . . . . . . . Machines | -11 -10 -10 -9 -9 -9 -8 -8 -7 -6 -6 -6 -6 -6 ---------- Run | Yrd Mat Min Mat Min Exi Min Mat Fac Fac Low Low Zio Dee Machines Disabled 12 | . . . . . . . . 5 . 1 . 3 3 Max in Single Turn 4 | . . . . . . . . 4 . 1 . 1 1 Garrison Access 1 | . . . . . . . 1 . . . . . . Machines Repaired . | . . . . . . . . . . . . . . Machines Dismantled 3 | . . . . . . . . . . . . 3 . Machines Sabotaged . | . . . . . . . . . . . . . . Overloaded Fab Kills . | . . . . . . . . . . . . . . Hacking | -11 -10 -10 -9 -9 -9 -8 -8 -7 -6 -6 -6 -6 -6 --------- Run | Yrd Mat Min Mat Min Exi Min Mat Fac Fac Low Low Zio Dee Machines Accessed 17 | . 2 . 3 . 1 . 8 2 1 . . . . Terminals 14 | . 2 . 3 . . . 6 2 1 . . . . Fabricators . | . . . . . . . . . . . . . . Repair Stations . | . . . . . . . . . . . . . . Recycling Units . | . . . . . . . . . . . . . . Scanalyzers 1 | . . . . . . . 1 . . . . . . Garrison Access 1 | . . . . . . . 1 . . . . . . Total Hacks 61 | . 8 . 13 . 1 . 32 6 1 . . . . Successful 30 | . 2 . 7 . 1 . 17 3 . . . . . Failed 30 | . 6 . 6 . . . 14 3 1 . . . . Catastrophic 6 | . 1 . 1 . . . 2 1 1 . . . . Database Lockouts 1 | . . . . . . . 1 . . . . . . Manual 35 | . 7 . 9 . . . 16 2 . 1 . . . Terminals 56 | . 8 . 13 . . . 28 6 1 . . . . Fabricators . | . . . . . . . . . . . . . . Repair Stations . | . . . . . . . . . . . . . . Recycling Units . | . . . . . . . . . . . . . . Scanalyzers 2 | . . . . . . . 2 . . . . . . Garrison Access 2 | . . . . . . . 2 . . . . . . Terminal Hacks 17 | . . . 5 . 1 . 9 2 . . . . . Record 1 | . . . . . 1 . . . . . . . . Robot Analysis 3 | . . . 1 . . . 2 . . . . . . Prototype ID Bank 2 | . . . . . . . 2 . . . . . . Branch Access Points 1 | . . . 1 . . . . . . . . . . Emergency Access Points 2 | . . . . . . . 2 . . . . . . Alert Level 1 | . . . 1 . . . . . . . . . . Unreport Threat 2 | . . . . . . . 1 1 . . . . . Locate Traps 1 | . . . . . . . . 1 . . . . . Hauler Manifests 1 | . . . . . . . 1 . . . . . . Registered Components 1 | . . . 1 . . . . . . . . . . Zone Layout 2 | . . . 1 . . . 1 . . . . . . Fabricator Hacks . | . . . . . . . . . . . . . . Repair Station Hacks . | . . . . . . . . . . . . . . Recycling Unit Hacks . | . . . . . . . . . . . . . . Scanalyzer 1 | . . . . . . . 1 . . . . . . Retrieve Study 1 | . . . . . . . 1 . . . . . . Garrison Access Hacks 1 | . . . . . . . 1 . . . . . . Seal Access 1 | . . . . . . . 1 . . . . . . Unauthorized Hacks 11 | . 2 . 2 . . . 6 1 . . . . . Terminals 11 | . 2 . 2 . . . 6 1 . . . . . Botnet 11 | . 2 . 2 . . . 6 1 . . . . . Fabricators . | . . . . . . . . . . . . . . Repair Stations . | . . . . . . . . . . . . . . Recycling Units . | . . . . . . . . . . . . . . Scanalyzers . | . . . . . . . . . . . . . . Garrison Access . | . . . . . . . . . . . . . . Data Cores Recovered . | . . . . . . . . . . . . . . Used . | . . . . . . . . . . . . . . Hacking Detections 13 | . 2 . 2 . . . 6 2 1 . . . . Full Trace Events 1 | . . . . . . . 1 . . . . . . Feedback Events . | . . . . . . . . . . . . . . Feedback Blocked . | . . . . . . . . . . . . . . Robot Schematics Acquired . | . . . . . . . . . . . . . . Robots Built . | . . . . . . . . . . . . . . Authchips . | . . . . . . . . . . . . . . Time . | . . . . . . . . . . . . . . Total Robot Build Rating . | . . . . . . . . . . . . . . Part Schematics Acquired . | . . . . . . . . . . . . . . Parts Built . | . . . . . . . . . . . . . . Authchips . | . . . . . . . . . . . . . . Time . | . . . . . . . . . . . . . . Total Part Build Rating . | . . . . . . . . . . . . . . Part Studies Acquired 1 | . . . . . . . 1 . . . . . . Parts Repaired . | . . . . . . . . . . . . . . Time . | . . . . . . . . . . . . . . Parts Recycled . | . . . . . . . . . . . . . . Recycled Matter . | . . . . . . . . . . . . . . Retrieved Matter . | . . . . . . . . . . . . . . Retrieved Components . | . . . . . . . . . . . . . . Parts Scanalyzed . | . . . . . . . . . . . . . . Part Schematics Acquired . | . . . . . . . . . . . . . . Parts Damaged . | . . . . . . . . . . . . . . Bothacking | -11 -10 -10 -9 -9 -9 -8 -8 -7 -6 -6 -6 -6 -6 ------------ Run | Yrd Mat Min Mat Min Exi Min Mat Fac Fac Low Low Zio Dee Used RIF Installer . | . . . . . . . . . . . . . . Robots Hacked . | . . . . . . . . . . . . . . Non-combat . | . . . . . . . . . . . . . . Combat . | . . . . . . . . . . . . . . Robot Hacks Applied . | . . . . . . . . . . . . . . Relay Couplers Released . | . . . . . . . . . . . . . . Fabnet Peak Effective % . | . . . . . . . . . . . . . . Robots Rewired . | . . . . . . . . . . . . . . Allies Hacked . | . . . . . . . . . . . . . . Hacks Repelled . | . . . . . . . . . . . . . . Allies | -11 -10 -10 -9 -9 -9 -8 -8 -7 -6 -6 -6 -6 -6 -------- Run | Yrd Mat Min Mat Min Exi Min Mat Fac Fac Low Low Zio Dee Total Allies 5 | . . . . . . . . . . . . 5 . Largest Group 5 | . . . . . . . . . . . . 5 5 Highest-Rated Group 138 | . . . . . . . . . . . . 138 138 Highest-Rated Ally 34 | . . . . . . . . . . . . 34 34 Total Orders . | . . . . . . . . . . . . . . Ally Attacks 130 | . . . . . . . . . . . . . 130 Total Damage 1565 | . . . . . . . . . . . . . 1565 Kills 14 | . . . . . . . . . . . . . 14 Allies Corrupted . | . . . . . . . . . . . . . . Allies Melted . | . . . . . . . . . . . . . . Intel | -11 -10 -10 -9 -9 -9 -8 -8 -7 -6 -6 -6 -6 -6 ------- Run | Yrd Mat Min Mat Min Exi Min Mat Fac Fac Low Low Zio Dee Active Infowar (turns) 3702 | . . . . . . . . 612 491 476 298 1270 555 Optics 1825 | . . . . . . . . . . . . 1270 555 Sensors 1622 | . . . . . . . . 357 491 476 298 . . Terrain 255 | . . . . . . . . 255 . . . . . Traps 394 | . . . . . . . . . 394 . . . . Robot Analysis Total 3 | . . . 1 . . . 2 . . . . . . Derelict Logs Recovered 3 | . . 1 . . . . . . . . 1 1 . Drone Launches . | . . . . . . . . . . . . . . Drone Recoveries . | . . . . . . . . . . . . . . Exploration | -11 -10 -10 -9 -9 -9 -8 -8 -7 -6 -6 -6 -6 -6 ------------- Run | Yrd Mat Min Mat Min Exi Min Mat Fac Fac Low Low Zio Dee Turns Passed 7799 | 93 683 306 497 58 166 159 564 954 491 476 395 2005 952 Spaces Moved 5335 | 52 359 193 282 30 128 83 365 693 354 284 273 1399 840 Core 121 | 2 . . . . . . . . . . . . 119 Treads 450 | 50 297 27 36 . . 39 . 1 . . . . . Legs 166 | . . . . . . . . 45 . . . . 121 Wheels 4199 | . 62 166 246 30 128 44 365 646 354 284 273 1399 202 Hover 399 | . . . . . . . . 1 . . . . 398 Flight . | . . . . . . . . . . . . . . Fastest Speed 50 | 50 110 115 130 130 130 125 110 105 130 130 130 130 50 Average Speed 124 | 155 151 138 144 130 130 179 121 116 130 130 130 130 85 Slowest Speed 320 | 160 160 240 240 130 130 240 155 320 130 130 130 130 200 Overloaded Moves . | . . . . . . . . . . . . . . Propulsion Burnouts . | . . . . . . . . . . . . . . Robots Hopped . | . . . . . . . . . . . . . . Potential Cave-ins . | . . . . . . . . . . . . . . Cave-ins Triggered . | . . . . . . . . . . . . . . Exploration Rate (%) 36 | 3 43 37 25 9 47 34 38 19 13 47 45 87 60 Regions Visited 13 Branch Regions 8 Pre-discovered Areas 3 | . . . . . 1 . . . . . . 2 . Known Exits Taken 5 | . . . 1 . . . . 1 1 1 1 . . Unknown Exits Taken 8 | 1 1 1 . 1 1 1 1 . . . . 1 . Scrap Searched 5 | . . . . . . . . . . . 1 4 . Spaces Dug 5 | . . . . . . . 1 4 . . . . . Terrain Destroyed 133 | . . . . . . . 9 58 . 1 45 . 20 Melee . | . . . . . . . . . . . . . . Projectile 23 | . . . . . . . 9 6 . 1 1 . 6 AOE 110 | . . . . . . . . 52 . . 44 . 14 Terrain Rammed . | . . . . . . . . . . . . . . Walls Destroyed . | . . . . . . . . . . . . . . Machines Disabled . | . . . . . . . . . . . . . . Actions | -11 -10 -10 -9 -9 -9 -8 -8 -7 -6 -6 -6 -6 -6 --------- Run | Yrd Mat Min Mat Min Exi Min Mat Fac Fac Low Low Zio Dee Total 6159 | 61 444 222 332 40 127 91 456 808 385 380 291 1525 997 Wait 355 | . 34 15 3 . . . 30 22 16 85 . 80 70 Move 5322 | 51 358 192 281 29 127 82 364 692 353 283 272 1398 840 Hop . | . . . . . . . . . . . . . . Pick Up 50 | 4 11 2 6 1 . 2 6 9 2 1 . 2 4 Fast Attach 49 | 6 2 1 1 . . . 4 15 4 . . 3 13 Attach 26 | . 3 . 1 . . . 2 4 1 . 2 3 10 Detach 11 | . . . . . . . 2 4 1 . . 4 . Swap 35 | . 1 4 7 2 . 3 4 4 2 2 2 1 3 Drop 67 | . 1 2 10 3 . 3 10 22 5 2 . 3 6 Fire 213 | . 34 6 23 5 . 1 34 35 . 6 15 3 51 Melee 4 | . . . . . . . . 1 1 1 . 1 . Ram . | . . . . . . . . . . . . . . Kick . | . . . . . . . . . . . . . . Crush . | . . . . . . . . . . . . . . Escape Stasis . | . . . . . . . . . . . . . . Rewire . | . . . . . . . . . . . . . . Trap . | . . . . . . . . . . . . . . Miscellaneous 27 | . . . . . . . . . . . . 27 . Route ------- -11/Scrapyard -10/Materials (discovered 3 exits: *Mat / [*Min x2]) -10/Mines -9/Materials (discovered 3 exits: *Mat / *Min x2) -9/Mines -9/Exiles -8/Mines -8/Materials -7/Factory (discovered 2 exits: *Fac / *Low) -6/Factory -6/Lower Caves -6/Lower Caves -6/Zion (discovered 2 exits: [*Dee] / [*Pro]) -6/Deep Caves History --------- Turn | Location | Event 23 | -11/Scrapyard | Discovered new exit (range 15) 94 | -11/Scrapyard | Entered Materials 122 | -10/Materials | Discovered new exit (range 12) 317 | -10/Materials | Build established: Mutant 514 | -10/Materials | Discovered new exit (range 14) 719 | -10/Materials | Discovered new exit (range 15) 777 | -10/Materials | Entered Mines 778 | -10/Mines | Met a Derelict bent on vengeance 831 | -10/Mines | Learned Materials stockpile data 886 | -10/Mines | Joined a pair of Derelicts in attacking an 0b10 outpost 1048 | -10/Mines | Discovered new exit (range 12) 1083 | -10/Mines | Entered Materials 1083 | -9/Materials | Evolved 2 slots: Propulsion x1, Utility x1 1095 | -9/Materials | Discovered new exit (range 13) 1195 | -9/Materials | Build established: Scavenger-Mutant 1388 | -9/Materials | Discovered new exit (range 15) 1539 | -9/Materials | Identified exit to Mines 1580 | -9/Materials | Entered Mines 1632 | -9/Mines | Deemed a non-threat by the Exiles lab entrance 1632 | -9/Mines | Discovered new exit (range 5) 1638 | -9/Mines | Entered Exiles 1670 | -9/Exiles | Met 8R-AWN 1693 | -9/Exiles | Met EX-HEX 1749 | -9/Exiles | Learned location of Zion (-6) 1789 | -9/Exiles | Discovered new exit (range 10) 1804 | -9/Exiles | Entered Mines 1946 | -8/Mines | Discovered new exit (range 14) 1963 | -8/Mines | Entered Materials 1963 | -8/Materials | Evolved 2 slots: Utility x2 2341 | -8/Materials | Central database locked down 2517 | -8/Materials | Discovered new exit (range 7) 2527 | -8/Materials | Entered Factory 2527 | -7/Factory | Evolved 2 slots: Propulsion x1, Weapon x1 3014 | -7/Factory | Discovered new exit (range 11) 3140 | -7/Factory | Identified exit to Lower Caves 3279 | -7/Factory | Build established: Mutant 3470 | -7/Factory | Discovered new exit (range 14) 3480 | -7/Factory | Identified exit to Factory 3481 | -7/Factory | Entered another Factory area 3481 | -6/Factory | Evolved 2 slots: Power x1, Utility x1 3830 | -6/Factory | Build established: Assassin 3965 | -6/Factory | Discovered new exit (range 6) 3970 | -6/Factory | Identified exit to Lower Caves 3972 | -6/Factory | Entered Lower Caves 4221 | -6/Lower Caves | Build established: Mutant 4250 | -6/Lower Caves | Encountered a Warlord checkpoint 4373 | -6/Lower Caves | Acquired the password to a Derelict Tinkerer's latest research 4394 | -6/Lower Caves | Found Prototype Special Weapon 4435 | -6/Lower Caves | Discovered new exit (range 11) 4447 | -6/Lower Caves | Identified exit to Lower Caves 4448 | -6/Lower Caves | Entered another Lower Caves area 4651 | -6/Lower Caves | Learned Factory terminal intel 4822 | -6/Lower Caves | Discovered new exit (range 12) 4842 | -6/Lower Caves | Identified exit to Zion 4843 | -6/Lower Caves | Entered Zion 4845 | -6/Zion | Identified Molecular Deconstructor 4981 | -6/Zion | Discovered new exit (range 15) 5400 | -6/Zion | Learned 4 Factory zone layouts 5446 | -6/Zion | Given the Hacking Drone Bay 5446 | -6/Zion | Found Prototype Device 6037 | -6/Zion | Met Imprinter 6427 | -6/Zion | Gained Derelict followers 6574 | -6/Zion | Gained Derelict followers 6828 | -6/Zion | Discovered new exit (range 3) 6828 | -6/Zion | Saw the warning signs outside the Deep Caves entrance 6848 | -6/Zion | Entered Deep Caves 6848 | -6/Deep Caves | Accompanied by 5 allies 7006 | -6/Deep Caves | Z-Facility disabled 7009 | -6/Deep Caves | Attacked by Z-Imprinter 7043 | -6/Deep Caves | Destroyed Z-Imprinter 7073 | -6/Deep Caves | Lost 5 parts (1p1n2u1w) 7344 | -6/Deep Caves | Spotted Golem 7358 | -6/Deep Caves | Exposed GOLEM chamber 7359 | -6/Deep Caves | Triggered Deep Caves wall 7367 | -6/Deep Caves | Spotted Assembler 7369 | -6/Deep Caves | Destroyed Golem 7410 | -6/Deep Caves | Identified Hacking Drone Bay 7411 | -6/Deep Caves | Released all parts (4) 7414 | -6/Deep Caves | Core integrity fell below 50% 7426 | -6/Deep Caves | Destroyed 24 combat bots 7427 | -6/Deep Caves | Lost 4 allies 7441 | -6/Deep Caves | Lost 15 parts (2p4n3u6w) 7792 | -6/Deep Caves | Core integrity fell below 20% 7800 | -6/Deep Caves | Destroyed self via exploding Z-Power Last Messages --------------- 07591_ System corrupted: Matter fused (-8). 07611_ Acquired 8 matter. 07615_ Acquired Hvy. Ion Cannon. 07618_ Acquired 10 matter. 07654_ System corrupted: Matter fused (-5). 07674_ Acquired 5 matter. 07682_ as-43243 destroyed. 07703_ System corrupted: Matter fused (-10). 07712_ Hover Unit destroyed. 07745_ Acquired 5 matter. 07755_ as-14883 destroyed. 07787_ System corrupted: Component data lost. 07792_ Hover Unit destroyed. 07800_ Z-Power explodes. 07800_ Zio. Glidesys II destroyed. 07800_ Destroyed Zio. Glidesys II. 07800_ Hvy. Ion Cannon destroyed. 07800_ Destroyed Hvy. Ion Cannon. 07800_ Exp. Reaction Control System destroyed. 07800_ Destroyed Exp. Reaction Control System. Map ----- +----------------------------------------------------+ | ?????? ##### #?????????? | | ????? #?????????? | | ????? #?????????? | | ?????? #?##???????# | | ??????? ## #???????# | | ???????????"""" ""####?????# | | ???????????"""" ! """"####### | | ??????????""""" %! ! %! | | ??????????""""" |[ ! !% | | ???????"""" %=!% | | "???????""""" """#### | | "???????"""""" % ######??# | | ""?????""""""" ##???????# | | ""????""""""" #???????## | | ""????""" " " ##??????# | | ""???""""% % #?????## | | ""????"" #?????# | | ""????"""% #?????# | | """???""" ##?????# | | """??""""" ##?????# # | | """""""""" #?????# ## | | """""" #?????# ?? | | """""" ##?????# ?? | | """""" ##?????## ## | | """""" " ##?????# # | | """"" " @ ##????# | | """" " #????# | | """" #????## | | """" ##?????# | | """" #??????# | | """""""" ##????# | | """ """" #????# | | ##???## | | #????##### | | #????????? | | #???????? | | #???????? | | #???????? | | ;;;;; #???????? | | ####? ;;# #### #???????? | | ##??????########???# ##???????? | | ## "####???????????????????# ###????????? | | ?############???????????????????????###??????????? | | ?????????????????????????????????????????????????? | | | | | | | | | | | | | +----------------------------------------------------+ Best States ------------- Heat Dissipation 89 Energy Generation 39 Energy Capacity 440 Matter Stores 300 Matter Capacity 300 Sight Range 23 Robot Scan Range 16 Terrain Scan Range 16 Terrain Scan Density 10 Armor Coverage 600 Phase Shifting 15 Evasion (%) 55 Armor Integrity Analysis 40 Recoil Reduction 2 Particle Charging 15 Offensive Hacking 14 Item Schematics ----------------- None Robot Schematics ------------------ None Fabricated ------------ Nothing Repaired ---------- Nothing Studied --------- Plasma Cutter | -8/Materials | Hacked Alien Tech Used ----------------- None Achievements -------------- None Challenges ------------ None Game ------ Seed SpikedFluxSegregator Manual? 0 Play Time 00:50:57 Cumulative 134.6 hours Start 2026.03.19 @ 23:07:46 End 2026.03.19 @ 23:55:31 Sessions 1 Manual Loads 0 Difficulty Rogue Special Mode None Game No. 111 Rogue 111 Adventurer 0 Explorer 0 Win Type - Total 2 Types 2/0/0/0/0/0/0/0/0/0 Lore% 68 Gallery% 56 Achievement% 49 Wizard Run 0 Options --------- Layout 2 ASCII 0 Keyboard 0 Movement Mouse Keybinds 0 Fullscreen 1 Font 24/Smallcaps Map View 50x44 Zoom Use 0% Tactical HUD 1 Map Filters NONE Filters NONE Steam 1 RUN: 5480784e-6083-4d1d-b985-17ce53ced393